{"text_format":"1","workbook":"xlsx","n_sheets":11,"sheets":["Input og forudsætninger","Oliefyr 1","Oliefyr 2","Fyring med halm (grå)","Fyring med halm (gul)","Fyring med korn","Fyring med pileflis","Fyring med gas","Fyring med træpiller","Varmepumpe","CO2 liste"],"not_rendered":{"charts":0,"images":2,"macros":1,"external_links":0,"defined_names":0,"comments":2,"pivot_tables":0},"unopened":[],"bounds":{"document_bytes":16777216,"sheet_cells":100000,"rows_first":2000,"rows_last":500,"rows_between":2000,"halvings":0,"cell_chars":16384,"cell_head_chars":4096},"cells_cut":0,"cells_raw":0,"read":"whole","date_system":"1900"}

{"sheet":"Input og forudsætninger","index":0,"n_rows":34,"n_cols":25,"rows_kept":34,"cut":false,"hidden":false,"merged":[[0,2,2,22],[3,1,5,10],[6,0,7,0],[6,7,6,8],[6,5,6,6],[6,9,6,10],[6,2,7,2],[6,17,6,22],[27,2,27,4],[28,2,28,4],[6,12,6,16],[6,3,6,4],[3,11,3,18],[26,0,26,22]]}
[null,null,"Fyringsøkonomi og CO2"]
[]
[]
[null,"Her indtastes de forudsætninger for beregningerne der foretages i Excel-arket. Derefter kan økonomien i de forskellige fyrings alternativer vurderes.",null,null,null,null,null,null,null,null,null,"Indtast grunddata til beregningerne : "]
[null,null,null,null,null,null,null,null,null,null,null,"Energiforbrug  Netto Kwh",null,"Elpris: Kr/Kwh",null,"løn, kr/time",null,"Kalkulations rente %","El til varmepumpe, kr./Kwh"]
[null,null,null,null,null,null,null,null,null,null,null,null,null,null,null,null,null,null,null,null,null,null,null,null,"Co2 pr kwh"]
["Brændsels type",null,"Pris kr./pr kg /liter","Brændværdi",null,"Tab ved fyr og rør",null,"STRØM",null,"TID OG LØN",null,"Service","ØKONOMI OG INVESTERING",null,null,null,null,"Totaler"]
[null,"Forbrug i kg / liter",null,"Kwh pr",null,"Virknings-grad på fyr i %","Øget rørføringstab i %","Forbrug i KWh","Pris kr/KWh","Tidsforbrug, timer / uge","Løn, kr/time","Kr./år","Kalkulations-rente","Afskrivnings-periode    (levetid i år)","Investering i fyr, kr","Investerings-beløb","Omkostninger til installation","Samlet pris kr./KWh","Brutto energiforbrug Kwh","løn","Rente","Strøm","CO2 udledning kg i alt"]
[null,null,null,null,null,null,null,null,null,null,null,null,null,null,null,null,null,null,null,{"$f":"P6","v":0},{"$f":"R6","v":0},{"$f":"N6","v":0}]
["Olie 1",null,null,10,"Kwh/liter",null,null,null,{"$f":"N6","v":0},null,{"$f":"P6","v":0},null,{"$f":"R6","v":0},null,{"$f":"P10","v":0},null,null,{"$f":"'Oliefyr 1'!B37","v":0},{"$f":"'Oliefyr 1'!B5","v":0},{"$f":"T9","v":0},{"$f":"U9","v":0},{"$f":"V9","v":0},{"$f":"S10*Y10","v":0},null,{"$f":"'CO2 liste'!C5","v":0.26600000000000001}]
[null,null,null,null,null,null,null,null,null,null,null,null,null,null,null,null,null,null,null,{"$f":"T10","v":0},{"$f":"U10","v":0},{"$f":"V10","v":0}]
["Olie 2 ",null,null,10,"Kwh/liter",null,null,null,{"$f":"N6","v":0},null,{"$f":"P6","v":0},null,{"$f":"R6","v":0},null,{"$f":"P12","v":0},null,5000,{"$f":"'Oliefyr 2'!B35","v":0},{"$f":"'Oliefyr 2'!B9","v":0},0,0,0,{"$f":"S12*Y12","v":0},null,{"$f":"'CO2 liste'!C5","v":0.26600000000000001}]
[null,null,null,null,null,null,null,null,null,null,null,null,null,null,null,null,null,null,null,0,0,0]
["Halm, grå",null,null,4.17,"Kwh/kg",null,null,null,{"$f":"N6","v":0},null,{"$f":"P6","v":0},null,{"$f":"R6","v":0},null,{"$f":"P14","v":0},null,null,{"$f":"'Fyring med halm (grå)'!B35","v":0},{"$f":"'Fyring med halm (grå)'!B9","v":0},0,0,0,{"$f":"S14*Y14","v":0},null,{"$f":"'CO2 liste'!C7","v":0}]
[null,null,null,null,null,null,null,null,null,null,null,null,null,null,null,null,null,null,null,0,0,0]
["Halm, gul",null,null,4,"Kwh/kg",null,null,null,{"$f":"N6","v":0},null,{"$f":"P6","v":0},null,{"$f":"U16","v":0},null,{"$f":"P16","v":0},null,null,{"$f":"'Fyring med halm (gul)'!B35","v":0},{"$f":"'Fyring med halm (gul)'!B9","v":0},0,0,0,{"$f":"S16*Y16","v":0},null,{"$f":"'CO2 liste'!C7","v":0}]
[null,null,null,null,null,null,null,null,null,null,null,null,null,null,null,null,null,null,null,0,0,0]
["Korn",null,null,4.17,"Kwh/kg",null,null,null,{"$f":"N6","v":0},null,{"$f":"P6","v":0},null,{"$f":"U18","v":0},null,{"$f":"P18","v":0},null,null,{"$f":"'Fyring med korn'!B35","v":0},{"$f":"'Fyring med korn'!B9","v":0},0,0,0,{"$f":"S18*Y18","v":0},null,{"$f":"'CO2 liste'!C9","v":0}]
[null,null,null,null,null,null,null,null,null,null,null,null,null,null,null,null,null,null,null,0,0,0]
["Pileflis, tør",null,null,2.2200000000000002,"Kwh/kg",null,null,null,{"$f":"N6","v":0},null,{"$f":"P6","v":0},null,{"$f":"U20","v":0},null,{"$f":"P20","v":0},null,null,{"$f":"'Fyring med pileflis'!B35","v":0},{"$f":"'Fyring med pileflis'!B9","v":0},0,0,0,{"$f":"S20*Y20","v":0},null,{"$f":"'CO2 liste'!C11","v":0}]
[null,null,null,null,null,null,null,null,null,null,null,null,null,null,null,null,null,null,null,0,0,0]
["Naturgas",null,null,11.75,"Kwh/m3",null,null,null,{"$f":"N6","v":0},null,{"$f":"P6","v":0},null,{"$f":"U22","v":0},null,{"$f":"P22","v":0},null,null,{"$f":"'Fyring med gas'!B35","v":0},{"$f":"'Fyring med gas'!B9","v":0},0,0,0,{"$f":"S22*Y22","v":0},null,{"$f":"'CO2 liste'!C21","v":0.23400000000000001}]
[null,null,null,null,null,null,null,null,null,null,null,null,null,null,null,null,null,null,null,0,0,0]
["Træpiller",null,null,4.8600000000000003,"Kwh/kg",null,null,null,{"$f":"N6","v":0},null,{"$f":"P6","v":0},null,{"$f":"U24","v":0},null,{"$f":"P24","v":0},null,null,{"$f":"'Fyring med træpiller'!B35","v":0},{"$f":"'Fyring med træpiller'!B9","v":0},0,0,0,{"$f":"S24*Y24","v":0},null,{"$f":"'CO2 liste'!C15","v":0}]
[]
[]
["Varmepumpe"]
[null,null,"Varmepumpens SCOP",null,null,null,null,null,null,null,null,"Service",null,"Levetid",null,"Investerings-beløb",null,"Samlet pris kr./KWh","Brutto energiforbrug Kwh","løn","Rente","Strøm","CO2 udledning kg i alt"]
["Varmepumpe","Indtastes i fanen Varmepumpe 2",null,null,null,null,null,null,{"$f":"N6","v":0},null,{"$f":"P6","v":0},null,{"$f":"R6","v":0},null,{"$f":"P29","v":0},null,null,{"$f":"Varmepumpe!B28","v":0},{"$f":"Varmepumpe!B26","v":0},"løn","Rente","Strøm",{"$f":"S29*Y29","v":0},null,{"$f":"'CO2 liste'!C19","v":0.19700000000000001}]
[]
[null,null,null,null,null,null,null,null,"Opslag",null,null,null,"Afhænger af",null,"Afhænger af",null,"Afhænger af",null,null,"Findes eller ","Findes eller ","Findes eller "]
[null,null,null,null,null,null,null,null,"i  tabel",null,null,null,"typen af fyr",null,"typen af fyr",null,"typen af fyr",null,null,"anslåes","anslåes","anslåes"]
[null,null,null,null,null,null,null,null,null,null,null,null,null,null,null,null,"ex, bevægelige"]
[null,null,null,null,null,null,null,null,null,null,null,null,null,null,null,null,"dele."]

{"sheet":"Oliefyr 1","index":1,"n_rows":39,"n_cols":8,"rows_kept":39,"cut":false,"hidden":false,"merged":[[0,0,0,5],[1,4,2,4],[1,7,2,7],[3,5,4,6]]}
["Fyring med Olie"]
[null,null,null,null,"Brændsel omkostninger pr kg / liter",null,"Kr/Kwt","CO 2 udledning / Kwh"]
[null,"Liter"]
["Olieforbrug",{"$f":"B5/B7","v":0},null,null,{"$f":"'Input og forudsætninger'!C10","v":0},{"$f":"B37","v":0},null,{"$f":"'CO2 liste'!C5","v":0.26600000000000001}]
["Brutto energi-forbrug KW",{"$f":"IFERROR(B6/B10,0)","v":0}]
["Netto energi der forbruges",{"$f":"'Input og forudsætninger'!L6","v":0}]
["Brændværdi af olie Kwh /liter",{"$f":"('Input og forudsætninger'!D10)","v":10}]
["Virkningsgrad",{"$f":"'Input og forudsætninger'!F10","v":0}]
["evt. øget tab ved rørføring %",{"$f":"'Input og forudsætninger'!G10","v":0}]
["Årsvirkningsgrad",{"$f":"B8-(B8*B9)","v":0}]
["Arbejdsindsats timer/år",{"$f":"'Input og forudsætninger'!J10*52","v":0}]
["Elforbrug Kwh",{"$f":"'Input og forudsætninger'!H10","v":0}]
[]
[]
["Driftsomkostninger:",null,null,null,"Der skal ikke tastes i arket på denne"]
[null,null,null,null,"side."]
[null,null,null,null,"Indtastningen skal ske på fanen:"]
["udgifter til fyringsolie",{"$f":"E4*B4","v":0}]
["Løn",{"$f":"'Input og forudsætninger'!J10*'Input og forudsætninger'!K10*52","v":0},null,null,"INPUT OG FORUDSÆTNINGER"]
["Elforbrug",{"$f":"'Input og forudsætninger'!H10*'Input og forudsætninger'!I10","v":0}]
["Serviceeftersyn og vedligehold",{"$f":"'Input og forudsætninger'!L10","v":0}]
["Driftsomkostninger i alt/år",{"$f":"SUM(B18,B19,B20,B21)","v":0}]
["Faste omkostninger:"]
["Fyrets anskaffelsespris",{"$f":"'Input og forudsætninger'!O10","v":0}]
["Installation",{"$f":"'Input og forudsætninger'!Q10","v":0}]
["I alt pris for oliefyr",{"$f":"SUM(B24:B25)","v":0}]
["Rente %",{"$f":"'Input og forudsætninger'!M10","v":0}]
["Afskrivningsperiode år",{"$f":"'Input og forudsætninger'!N10","v":0},null,null,{"$f":"B27/((1-(1+B27)^-B28))","v":{"$error":"#DIV/0!"}}]
["Faste omkostninger i alt/år(GKO)",{"$f":"IFERROR(B26*E28,0)","v":0}]
[]
["Samlede omkostninger til energi pr år",{"$f":"B22+B29","v":0}]
[]
["Energiforbrug i KWh  i brændsel",{"$f":"B5","v":0}]
[]
["Total energiforbrug , brændsel + strøm i KWh",{"$f":"B33+B12","v":0}]
[]
["Pris  kroner pr KWh alt incl",{"$f":"IFERROR(B31/B6,0)","v":0}]
[]
["CO2 udledning i alt",{"$f":"B5*H4","v":0}]

{"sheet":"Oliefyr 2","index":2,"n_rows":35,"n_cols":9,"rows_kept":35,"cut":false,"hidden":false,"merged":[[0,0,0,5],[2,8,3,8]]}
["Fyring med olie 2"]
[]
[null,null,null,null,null,null,null,null,"CO 2 udledning / Kwh"]
["Netto forbrug af energi i KWh",{"$f":"'Oliefyr 1'!B6","v":0},"Forbrug i MJ (KWhx3,6)",{"$f":"B4*3.6","v":0}]
["Samlet behov for olie liter",{"$f":"B9/B10","v":0},null,null,null,null,null,null,{"$f":"'CO2 liste'!C5","v":0.26600000000000001}]
["Virkningsgrad",{"$f":"'Input og forudsætninger'!F12","v":0}]
["Evt øget rørføringstab",{"$f":"'Input og forudsætninger'!G12","v":0}]
["Årsvirkningsgrad, incl rør-tab",{"$f":"B6-(B6*B7)","v":0},null,null,"Der skal ikke tastes i arket på denne"]
["Brutto energi der skal bruges KWh",{"$f":"IFERROR(B4/B8,0)","v":0},null,null,"side."]
["Brændværdi af kwh/liter",{"$f":"('Input og forudsætninger'!D12)","v":10},null,null,"Indtastningen skal ske på fanen:"]
[null,null,null,null,"INPUT OG FORUDSÆTNINGER"]
[{"$f":"'Oliefyr 1'!A12","v":"Elforbrug Kwh"},{"$f":"'Input og forudsætninger'!H12","v":0}]
[]
["Driftsomkostninger:"]
["udgifter til brændsel",{"$f":"B5*'Input og forudsætninger'!C12","v":0}]
["Løn",{"$f":"'Input og forudsætninger'!J12*'Input og forudsætninger'!K12*52","v":0}]
["Elforbrug",{"$f":"'Input og forudsætninger'!H12*'Input og forudsætninger'!I12","v":0}]
["Service og vedligehold",{"$f":"'Input og forudsætninger'!L12","v":0}]
["Driftsomkostninger",{"$f":"SUM(B15,B16,B17,B18)","v":0}]
["Faste omkostninger:"]
["Fyrets anskaffelsespris"]
["Fyrrum og lager",{"$f":"'Input og forudsætninger'!P12","v":0}]
["Installation"]
["I alt pris etablering af fyr",{"$f":"SUM(B21:B23)","v":0}]
["Rente %",{"$f":"'Input og forudsætninger'!M12","v":0}]
["Afskrivningsperiode (levetid)",{"$f":"'Input og forudsætninger'!N12","v":0}]
["Faste omkostninger i alt/år(GKO)",{"$f":"IFERROR(B24*E27,0)","v":0},null,null,{"$f":"B25/((1-(1+B25)^-B26))","v":{"$error":"#DIV/0!"}}]
[]
["Samlede omkostninger til energi pr år",{"$f":"B27+B19","v":0}]
[]
["Energiforbrug i KWh  i brændsel",{"$f":"B9","v":0}]
[]
["Total energiforbrug , brændsel + strøm i KWh",{"$f":"B31+B12","v":0}]
[]
["Pris  kroner pr KWh alt incl",{"$f":"IFERROR(B29/B4,0)","v":0}]

{"sheet":"Fyring med halm (grå)","index":3,"n_rows":35,"n_cols":5,"rows_kept":35,"cut":false,"hidden":false,"merged":[[0,0,0,5]]}
["Fyring med halm, grå"]
[]
[]
["Nettoforbrug af energi i KWh",{"$f":"'Oliefyr 1'!B6","v":0},"Forbrug i MJ (KWhx3,6)",{"$f":"B4*3.6","v":0}]
[]
["Virkningsgrad",{"$f":"'Input og forudsætninger'!F14","v":0}]
["Evt øget rørføringstab",{"$f":"'Input og forudsætninger'!G14","v":0}]
["Årsvirkningsgrad, incl rør-tab",{"$f":"B6-(B6*B7)","v":0},null,null,"Der skal ikke tastes i arket på denne"]
["Brutto energi der skal bruges KWh",{"$f":"IFERROR(B4/B8,0)","v":0},null,null,"side."]
["Brændværdi af halm (grå) MJ/KG",{"$f":"'Input og forudsætninger'!D14","v":4.17},null,null,"Indtastningen skal ske på fanen:"]
["Samlet behov for halm, kg",{"$f":"B9/B10","v":0},null,null,"INPUT OG FORUDSÆTNINGER"]
[{"$f":"'Oliefyr 1'!A12","v":"Elforbrug Kwh"},{"$f":"'Input og forudsætninger'!H14","v":0}]
[]
["Driftsomkostninger:"]
["udgifter til brændsel",{"$f":"B11*'Input og forudsætninger'!C14","v":0}]
["Løn",{"$f":"'Input og forudsætninger'!J14*'Input og forudsætninger'!K14*52","v":0}]
["Elforbrug",{"$f":"'Input og forudsætninger'!H14*'Input og forudsætninger'!I14","v":0}]
["Service og vedligehold",{"$f":"'Input og forudsætninger'!L14","v":0}]
["Driftsomkostninger",{"$f":"SUM(B15,B16,B17,B18)","v":0}]
["Faste omkostninger:"]
["Fyrets anskaffelsespris"]
["Fyrrum og lager",{"$f":"'Input og forudsætninger'!P14","v":0}]
["Installation",{"$f":"'Input og forudsætninger'!Q14","v":0}]
["I alt pris etablering af fyr",{"$f":"SUM(B21:B23)","v":0}]
["Rente %",{"$f":"'Input og forudsætninger'!M14","v":0}]
["Afskrivningsperiode (levetid)",{"$f":"'Input og forudsætninger'!N14","v":0}]
["Faste omkostninger i alt/år(GKO)",{"$f":"IFERROR(B24*E27,0)","v":0},null,null,{"$f":"B25/((1-(1+B25)^-B26))","v":{"$error":"#DIV/0!"}}]
[]
["Samlede omkostninger til energi pr år",{"$f":"B27+B19","v":0}]
[]
["Energiforbrug i KWh  i brændsel",{"$f":"B9","v":0}]
[]
["Total energiforbrug , brændsel + strøm i KWh",{"$f":"B31+B12","v":0}]
[]
["Pris  kroner pr KWh alt incl",{"$f":"IFERROR(B29/B4,0)","v":0}]

{"sheet":"Fyring med halm (gul)","index":4,"n_rows":35,"n_cols":5,"rows_kept":35,"cut":false,"hidden":false,"merged":[[0,0,0,5]]}
["Fyring med halm"]
[]
[]
["Nettoforbrug af energi i KWh",{"$f":"'Oliefyr 1'!B6","v":0},"Forbrug i MJ (KWhx3,6)",{"$f":"B4*3.6","v":0}]
[]
["Virkningsgrad",{"$f":"'Input og forudsætninger'!F16","v":0}]
["Evt øget rørføringstab",{"$f":"'Input og forudsætninger'!G16","v":0}]
["Årsvirkningsgrad, incl rør-tab",{"$f":"B6-(B6*B7)","v":0},null,"Der skal ikke tastes i arket på denne"]
["Brutto energi der skal bruges KWh",{"$f":"IFERROR(B4/B8,0)","v":0},null,"side."]
["Brændværdi af halm  Kwh/KG",{"$f":"'Input og forudsætninger'!D16","v":4},null,"Indtastningen skal ske på fanen:"]
["Samlet behov for halm, kg",{"$f":"B9/B10","v":0},null,"INPUT OG FORUDSÆTNINGER"]
["Elforbrug KWh",{"$f":"'Input og forudsætninger'!H16","v":0}]
[]
["Driftsomkostninger:"]
["udgifter til brændsel",{"$f":"B11*'Input og forudsætninger'!C16","v":0}]
["Løn",{"$f":"'Input og forudsætninger'!J16*'Input og forudsætninger'!K16*52","v":0}]
["Elforbrug",{"$f":"'Input og forudsætninger'!H16*'Input og forudsætninger'!I16","v":0}]
["Vedligehold",{"$f":"'Input og forudsætninger'!L16","v":0}]
["Samlede fyringsomkostninger",{"$f":"SUM(B15,B16,B17,B18)","v":0}]
["Faste omkostninger:"]
["Fyrets anskaffelsespris"]
["Fyrrum og lager",{"$f":"'Input og forudsætninger'!P16","v":0}]
["Installation",{"$f":"'Input og forudsætninger'!Q16","v":0}]
["I alt pris etablering af fyr",{"$f":"SUM(B21:B23)","v":0}]
["Rente %",{"$f":"'Input og forudsætninger'!M16","v":0}]
["Levetid",{"$f":"'Input og forudsætninger'!N16","v":0}]
["Faste omkostninger i alt/år(GKO)",{"$f":"IFERROR(B24*E27,0)","v":0},null,null,{"$f":"B25/((1-(1+B25)^-B26))","v":{"$error":"#DIV/0!"}}]
[]
["Samlede omkostninger til energi pr år",{"$f":"B19+B27","v":0}]
[]
["Energiforbrug i KWh  i brændsel",{"$f":"B9","v":0}]
[]
["Total energiforbrug , brændsel + strøm i KWh",{"$f":"B31+B12","v":0}]
[]
["Pris  kroner pr KWh alt incl",{"$f":"IFERROR(B29/B4,0)","v":0}]

{"sheet":"Fyring med korn","index":5,"n_rows":35,"n_cols":8,"rows_kept":35,"cut":false,"hidden":false,"merged":[[0,0,0,5]]}
["Fyring med korn"]
[]
[null,null,null,null,null,null,"Kr /kwh",{"$f":"B35","v":0}]
["Nettoforbrug af energi i KWh",{"$f":"'Oliefyr 1'!B6","v":0},"Forbrug i MJ (KWhx3,6)",{"$f":"B4*3.6","v":0}]
[]
["Virkningsgrad",{"$f":"'Input og forudsætninger'!F18","v":0}]
["Evt øget rørføringstab",{"$f":"'Input og forudsætninger'!G18","v":0}]
["Årsvirkningsgrad, incl rør-tab",{"$f":"B6+B7","v":0},null,"Der skal ikke tastes i arket på denne"]
["Brutto energi der skal bruges KWh",{"$f":"IFERROR(B4/B8,0)","v":0},null,"side."]
["Brændværdi  Kwh/KG",{"$f":"'Input og forudsætninger'!D18","v":4.17},null,"Indtastningen skal ske på fanen:"]
["Samlet behov for brændsel kg",{"$f":"B9/B10","v":0},null,"INPUT OG FORUDSÆTNINGER"]
[{"$f":"'Oliefyr 1'!A12","v":"Elforbrug Kwh"},{"$f":"'Input og forudsætninger'!H18","v":0}]
[]
["Driftsomkostninger:"]
["udgifter til brændsel",{"$f":"B11*'Input og forudsætninger'!C18","v":0}]
["Løn",{"$f":"'Input og forudsætninger'!J18*'Input og forudsætninger'!K18*52","v":0}]
["Elforbrug",{"$f":"'Input og forudsætninger'!H18*'Input og forudsætninger'!I18","v":0}]
["Vedligehold",{"$f":"'Input og forudsætninger'!L18","v":0}]
["Driftsomkostninger i alt pr år",{"$f":"SUM(B15,B16,B17,B18)","v":0}]
["Faste omkostninger:"]
["Fyrets anskaffelsespris"]
["Fyrrum og lager",{"$f":"'Input og forudsætninger'!P18","v":0}]
["Installation",{"$f":"'Input og forudsætninger'!Q18","v":0}]
["I alt pris etablering af fyr",{"$f":"SUM(B21:B23)","v":0}]
["Rente %",{"$f":"'Input og forudsætninger'!M18","v":0}]
["Afskrivningsperiode i år",{"$f":"'Input og forudsætninger'!N18","v":0}]
["Faste omkostninger i alt/år(GKO)",{"$f":"IFERROR(B24*E27,0)","v":0},null,null,{"$f":"B25/((1-(1+B25)^-B26))","v":{"$error":"#DIV/0!"}}]
[]
["Samlede omkostninger til energi pr år",{"$f":"B27+B19","v":0}]
[]
["Energiforbrug i KWh  i brændsel",{"$f":"B9","v":0}]
[]
["Total energiforbrug , brændsel + strøm i KWh",{"$f":"B31+B12","v":0}]
[]
["Pris  kroner pr KWh alt incl",{"$f":"IFERROR(B29/B4,0)","v":0}]

{"sheet":"Fyring med pileflis","index":6,"n_rows":35,"n_cols":8,"rows_kept":35,"cut":false,"hidden":false,"merged":[[0,0,0,5]]}
["Fyring med pileflis"]
[]
[]
["Nettoforbrug af energi i KWh",{"$f":"'Oliefyr 1'!B6","v":0},"Forbrug i MJ (KWhx3,6)",{"$f":"B4*3.6","v":0},null,null,"Kr/kwh",{"$f":"B35","v":0}]
[]
["Virkningsgrad",{"$f":"'Input og forudsætninger'!F20","v":0}]
["Evt øget rørføringstab",{"$f":"'Input og forudsætninger'!G20","v":0}]
["Årsvirkningsgrad, incl rør-tab",{"$f":"B6-(B6*B7)","v":0},null,"Der skal ikke tastes i arket på denne"]
["Brutto energi der skal bruges KWh",{"$f":"IFERROR(B4/B8,0)","v":0},null,"side."]
["Brændværdi  Kwh/KG",{"$f":"'Input og forudsætninger'!D20","v":2.2200000000000002},null,"Indtastningen skal ske på fanen:"]
["Samlet behov for brændsel kg",{"$f":"B9/B10","v":0},null,"INPUT OG FORUDSÆTNINGER"]
[{"$f":"'Oliefyr 1'!A12","v":"Elforbrug Kwh"},{"$f":"'Input og forudsætninger'!H20","v":0}]
[]
["Driftsomkostninger:"]
["udgifter til brændsel",{"$f":"B11*'Input og forudsætninger'!C20","v":0}]
["Løn",{"$f":"'Input og forudsætninger'!J20*'Input og forudsætninger'!K20*52","v":0}]
["Elforbrug",{"$f":"'Input og forudsætninger'!H20*'Input og forudsætninger'!I20","v":0}]
["Vedligehold",{"$f":"'Input og forudsætninger'!L20","v":0}]
["Driftsomkostninger i alt pr år",{"$f":"SUM(B15,B16,B17,B18)","v":0}]
["Faste omkostninger:"]
["Fyrets anskaffelsespris"]
["Fyrrum og lager",{"$f":"'Input og forudsætninger'!P20","v":0}]
["Installation",{"$f":"'Input og forudsætninger'!Q20","v":0}]
["I alt pris etablering af fyr",{"$f":"SUM(B21:B23)","v":0}]
["Rente %",{"$f":"'Input og forudsætninger'!M20","v":0}]
["Afskrivningsperiode i år",{"$f":"'Input og forudsætninger'!N20","v":0}]
["Faste omkostninger i alt/år(GKO)",{"$f":"IFERROR(B24*E27,0)","v":0},null,null,{"$f":"B25/((1-(1+B25)^-B26))","v":{"$error":"#DIV/0!"}}]
[]
["Samlede omkostninger til energi pr år",{"$f":"B27+B19","v":0}]
[]
["Energiforbrug i KWh  i brændsel",{"$f":"B9","v":0}]
[]
["Total energiforbrug , brændsel + strøm i KWh",{"$f":"B31+B12","v":0}]
[]
["Pris  kroner pr KWh alt incl",{"$f":"IFERROR(B29/B4,0)","v":0}]

{"sheet":"Fyring med gas","index":7,"n_rows":35,"n_cols":8,"rows_kept":35,"cut":false,"hidden":false,"merged":[[0,0,0,5]]}
["Fyring med gas"]
[]
[]
["Nettoforbrug af energi i KWh",{"$f":"'Oliefyr 1'!B6","v":0},"Forbrug i MJ (KWhx3,6)",{"$f":"B4*3.6","v":0},null,null,"Kr/kwh",{"$f":"B35","v":0}]
[]
["Virkningsgrad",{"$f":"'Input og forudsætninger'!F22","v":0}]
["Evt øget rørføringstab",{"$f":"'Input og forudsætninger'!G22","v":0}]
["Årsvirkningsgrad, incl rør-tab",{"$f":"B6-(B6*B7)","v":0}]
["Brutto energi der skal bruges KWh",{"$f":"IFERROR(B4/B8,0)","v":0},null,"Der skal ikke tastes i arket på denne"]
["Brændværdi  Kwh/m3",{"$f":"'Input og forudsætninger'!D22","v":11.75},null,"side."]
["Samlet behov for brændsel, m3",{"$f":"IFERROR(B9/B10,0)","v":0},null,"Indtastningen skal ske på fanen:"]
[{"$f":"'Oliefyr 1'!A12","v":"Elforbrug Kwh"},{"$f":"'Input og forudsætninger'!H22","v":0},null,"INPUT OG FORUDSÆTNINGER"]
[]
["Driftsomkostninger:"]
["udgifter til brændsel",{"$f":"B11*'Input og forudsætninger'!C22","v":0}]
["Løn",{"$f":"'Input og forudsætninger'!J22*'Input og forudsætninger'!K22*52","v":0}]
["Elforbrug",{"$f":"'Input og forudsætninger'!H22*'Input og forudsætninger'!I22","v":0}]
["Vedligehold",{"$f":"'Input og forudsætninger'!L22","v":0}]
["Driftsomkostninger i alt pr år",{"$f":"SUM(B15,B16,B17,B18)","v":0}]
["Faste omkostninger:"]
["Fyrets anskaffelsespris"]
["Fyrrum og lager",{"$f":"'Input og forudsætninger'!P22","v":0}]
["Installation",{"$f":"'Input og forudsætninger'!Q22","v":0}]
["I alt pris etablering af fyr",{"$f":"SUM(B21:B23)","v":0}]
["Rente %",{"$f":"'Input og forudsætninger'!M22","v":0}]
["Afskrivningeperiode i år",{"$f":"'Input og forudsætninger'!N22","v":0}]
["Faste omkostninger i alt/år(GKO)",{"$f":"IFERROR(B24*E27,0)","v":0},null,null,{"$f":"B25/((1-(1+B25)^-B26))","v":{"$error":"#DIV/0!"}}]
[]
["Samlede omkostninger til energi pr år",{"$f":"B27+B19","v":0}]
[]
["Energiforbrug i KWh  i brændsel",{"$f":"B9","v":0}]
[]
["Total energiforbrug , brændsel + strøm i KWh",{"$f":"B31+B12","v":0}]
[]
["Pris  kroner pr KWh alt incl",{"$f":"IFERROR(B29/B4,0)","v":0}]

{"sheet":"Fyring med træpiller","index":8,"n_rows":35,"n_cols":8,"rows_kept":35,"cut":false,"hidden":false,"merged":[[0,0,0,5]]}
["Fyring med træpiller"]
[]
[]
["Nettoforbrug af energi i KWh",{"$f":"'Oliefyr 1'!B6","v":0},"Forbrug i MJ (KWhx3,6)",{"$f":"B4*3.6","v":0},null,null,"Kr/kwh",{"$f":"B35","v":0}]
[]
["Virkningsgrad",{"$f":"'Input og forudsætninger'!F24","v":0}]
["Evt øget rørføringstab",{"$f":"'Input og forudsætninger'!G24","v":0}]
["Årsvirkningsgrad, incl rør-tab",{"$f":"B6-(B6*B7)","v":0},null,"Der skal ikke tastes i arket på denne"]
["Brutto energi der skal bruges KWh",{"$f":"IFERROR(B4/B8,0)","v":0},null,"side."]
["Brændværdi  Kwh/KG",{"$f":"'Input og forudsætninger'!D24","v":4.8600000000000003},null,"Indtastningen skal ske på fanen:"]
["Samlet behov for brændsel, kg",{"$f":"B9/B10","v":0},null,"INPUT OG FORUDSÆTNINGER"]
[{"$f":"'Oliefyr 1'!A12","v":"Elforbrug Kwh"},{"$f":"'Input og forudsætninger'!H24","v":0}]
[]
["Driftsomkostninger:"]
["udgifter til brændsel",{"$f":"B11*'Input og forudsætninger'!C24","v":0}]
["Løn",{"$f":"'Input og forudsætninger'!J24*'Input og forudsætninger'!K24*52","v":0}]
["Elforbrug",{"$f":"'Input og forudsætninger'!H24*'Input og forudsætninger'!I24","v":0}]
["Vedligehold",{"$f":"'Input og forudsætninger'!L24","v":0}]
["Driftsomkostninger i alt pr år",{"$f":"SUM(B15,B16,B17,B18)","v":0}]
["Faste omkostninger:"]
["Fyrets anskaffelsespris"]
["Fyrrum og lager",{"$f":"'Input og forudsætninger'!P24","v":0}]
["Installation",{"$f":"'Input og forudsætninger'!Q24","v":0}]
["I alt pris etablering af fyr",{"$f":"SUM(B21:B23)","v":0}]
["Rente %",{"$f":"'Input og forudsætninger'!M24","v":0}]
["Afskrivningeperiode i år",{"$f":"'Input og forudsætninger'!N24","v":0}]
["Faste omkostninger i alt/år(GKO)",{"$f":"IFERROR(B24*E27,0)","v":0},null,null,{"$f":"B25/((1-(1+B25)^-B26))","v":{"$error":"#DIV/0!"}}]
[]
["Samlede omkostninger til energi pr år",{"$f":"B27+B19","v":0}]
[]
["Energiforbrug i KWh  i brændsel",{"$f":"B9","v":0}]
[]
["Total energiforbrug , brændsel + strøm i KWh",{"$f":"B31+B12","v":0}]
[]
["Pris  kroner pr KWh alt incl",{"$f":"IFERROR(B29/B4,0)","v":0}]

{"sheet":"Varmepumpe","index":9,"n_rows":28,"n_cols":7,"rows_kept":28,"cut":false,"hidden":false,"merged":[[0,0,0,5]]}
["Varmepumpe"]
[]
[]
["Nettoforbrug af energi i KWh",{"$f":"'Oliefyr 1'!B6","v":0},"Forbrug i MJ (KWhx3,6)",{"$f":"B4*3.6","v":0},null,"Kr/kwh",{"$f":"B28","v":0}]
[]
["Varmepumpens COP / SCOP",{"$f":"'Input og forudsætninger'!C29:E29","v":0},0,0]
["Brutto energi",{"$f":"IFERROR(B4/B6,0)","v":0}]
["El pris til varmepumpen, kr/KWh",{"$f":"'Input og forudsætninger'!S6","v":0},"kr"]
[]
["Driftsomkostninger:"]
["udgifter til El",{"$f":"B26*B8","v":0}]
["Løn",{"$f":"'Input og forudsætninger'!P6*'Input og forudsætninger'!J29*52","v":0}]
[]
["Serviceeftersyn og vedligehold",{"$f":"'Input og forudsætninger'!L29","v":0}]
["Driftsomkostninger i alt/år",{"$f":"IFERROR(SUM(B11,B12,B13,B14),0)","v":0}]
["Faste omkostninger:"]
["Anskaffelsespris",{"$f":"'Input og forudsætninger'!P29","v":0}]
[]
["I alt pris etablering",{"$f":"SUM(B17:B18)","v":0}]
["Rente %",{"$f":"'Input og forudsætninger'!R6","v":0}]
["Afskrivningsperiode år",{"$f":"'Input og forudsætninger'!N29","v":0}]
["Faste omkostninger i alt/år(GKO)",{"$f":"IFERROR(B19*E22,0)","v":0},null,null,{"$f":"B20/((1-(1+B20)^-B21))","v":{"$error":"#DIV/0!"}}]
[]
["Årlige omkostninger til energi, totalt",{"$f":"B22+B15","v":0}]
[]
["Elforbrug pr år, Kwh",{"$f":"IFERROR(B4/B6,0)","v":0}]
[]
["Pris  kroner pr KWh alt incl",{"$f":"IFERROR(B24/B4,0)","v":0}]

{"sheet":"CO2 liste","index":10,"n_rows":49,"n_cols":10,"rows_kept":49,"cut":false,"hidden":false,"merged":[]}
[]
[]
[null,"Brændsel ","CO2 udledning , kg co2 /Kwh"]
[]
[null,"Olie",0.26600000000000001]
[]
[null,"Grå halm",0]
[]
[null,"Korn",0]
[]
[null,"Pileflis",0]
[]
[null,"Raps",0]
[]
[null,"Træpiller",0]
[]
[null,"Varmepumpe",0.19700000000000001]
[]
[null,"El",0.19700000000000001]
[]
[null,"Naturgas",0.23400000000000001]
[]
[]
[]
[]
[]
[]
[]
[]
[]
[]
[]
[]
[]
[]
[]
[]
[]
[]
[]
[]
[]
[]
[]
[]
[]
[]
[]
[null,null,null,null,null,null,null,null,"Kilde","https://hbemo.dk/haandbog-for-energikonsulenter-hb2019-gaeldende/bilag-4-energimaerkning-af-eksisterende-bygninger/vejledende-tekniske-bilag-og-tabeller/braendsel/braendvaerdier-og-co2-emissionsfaktorer"]